[Event "Qatar Masters 2024"]
[Site "Doha"]
[Date "2024.12.03"]
[Round "1.30"]
[White "Zemlyanskii, Ivan"]
[Black "Munguntuul, Batkhuyag"]
[Result "1-0"]
[Annotator "TA"]
[ECO "B12"]
[WhiteElo "2543"]
[BlackElo "2344"]
[PlyCount "89"]
[EventDate "2024.11.24"]
[EventType "swiss"]
[EventCountry "QAT"]
[SourceTitle "playchess.com"]
[Source "ChessBase"]
[SourceQuality "1"]
[TimeControl "40/5400+30:1800+30"]

{[%evp 11,87,12,13,9,7,17,25,19,42,22,30,35,51,36,69,66,71,31,70,72,75,80,77,79,71,74,71,69,63,59,102,79,72,60,64,54,73,74,72,58,124,10,5,12,12,3,85,17,73,0,109,31,52,10,75,86,456,379,466,460,434,453,499,324,413,319,1219,1212,1850,1853,1637,1615,1433,1328,29978,1033,1742,1766]} 1. e4 {[%emt 0:00:03]} c6 {[%emt 0:00:03]} 2. d4 {[%emt 0:00:12]} d5 {[%emt 0:00:03]} 3. e5 {[%emt 0:00:14]} Bf5 {[%emt 0:00:03]} 4. c4 {[%emt 0:00:05]} e6 {[%emt 0:01:54]} 5. Nc3 {[%emt 0:00:06]} Nd7 {[%emt 0:05:13]} 6. cxd5 {[%emt 0:00:13]} cxd5 {[%emt 0:00:28]} 7. Bd3 {[%emt 0:00:16] Black should prevent Bxf5.} Bxd3 {[%emt 0:04:39]} 8. Qxd3 {[%emt 0:00:02]} Bb4 {[%emt 0:02:19]} 9. Qg3 {[%emt 0:00:38] White has an edge.} Kf8 {[%emt 0:08:42]} 10. Nge2 {[%emt 0:01:19]} Ne7 {[%emt 0:02:16]} 11. O-O {[%emt 0:02:06]} Nb6 {[%emt 0:03:44]} 12. Qd3 {[%emt 0:08:56]} h5 {[%emt 0:03:24]} 13. Bg5 {[%emt 0:06:10]} Qd7 {[%emt 0:02:51]} 14. Rac1 {[%emt 0:04:51]} Nf5 {[%emt 0:16:48]} 15. Ng3 {[%emt 0:12:49]} Be7 {[%emt 0:03:37]} 16. Nxf5 {[%emt 0:10:09]} Bxg5 {[%emt 0:00:16] [#]} 17. Qg3 $1 {[%emt 0:00:02]} Bh6 {[%emt 0:18:51]} 18. Nxh6 {[%emt 0:00:12]} Rxh6 {[%emt 0:00:15]} 19. Rc2 {[%emt 0:05:06]} Rc8 {[%emt 0:04:34]} 20. Rfc1 {[%emt 0:01:01]} Kg8 {[%emt 0:02:04]} 21. b3 {[%emt 0:02:53]} Rh8 {[%emt 0:06:21]} 22. a4 {[%emt 0:02:30][%cal Ba2a4,Ba4a5][%mdl 32] a5 is the strong threat.} Rc6 {[%emt 0:00:35]} 23. Ne2 {[%emt 0:13:13] Black must now prevent Rxc6.} Rxc2 {[%emt 0:01:54]} 24. Rxc2 {[%emt 0:00:01]} Kh7 {[%emt 0:00:16]} 25. a5 {[%emt 0:04:06]} Nc8 {[%emt 0:00:48]} (25... Na8 $1 $14) 26. Rc3 {[%emt 0:04:18] White has more active pieces.} (26. Qg5 $16) 26... Ne7 $11 {[%emt 0:01:54]} 27. Qf3 {[%emt 0:03:04]} Kg8 {[%emt 0:02:52]} 28. h3 {[%emt 0:04:28]} Nc6 {[%emt 0:00:46]} (28... a6 $11) 29. Rc5 {[%emt 0:01:33]} (29. a6 $1 $16) 29... g6 {[%emt 0:01:15] [#]} (29... Nb4 $11) 30. Qf6 {[%emt 0:01:06]} (30. a6 $1 $16 b6 31. Rc3) 30... Kh7 {[%emt 0:01:02]} (30... a6 $11) 31. g4 {[%emt 0:00:53]} ({White should try} 31. a6 $16) 31... hxg4 $14 {[%emt 0:01:55]} 32. hxg4 {[%emt 0:00:01][%cal Oa5a6]} Kg8 {[%emt 0:00:10] [#]} (32... a6 $1 $11) 33. a6 $1 $16 {[%emt 0:03:22]} Rh3 $2 {[%emt 0:02:02][%mdl 8192] This move loses the game for Black.} (33... b6 $16 34. Rc3 b5) 34. Kg2 {[%emt 0:02:19]} Rh7 {[%emt 0:00:30]} 35. axb7 {[%emt 0:00:30]} Qxb7 {[%emt 0:02:48]} 36. Nf4 {[%emt 0:01:16]} Ne7 {[%emt 0:01:21] [#]} (36... Nxd4 $2 37. Qd8+ Kg7 38. Rc8) 37. b4 {[%emt 0:01:12][%mdl 512] Black is weak on the dark squares} Qd7 {[%emt 0:00:00]} 38. Nh3 {[%emt 0:00:27] Strongly threatening Ng5.} Rg7 $2 {[%emt 0:00:05]} (38... g5 39. Nxg5 (39. Qxg5+ Rg7 $18) 39... Rg7) 39. Ng5 $18 {[%emt 0:00:13]} Qb7 {[%emt 0:00:33]} 40. Rc3 {[%emt 0:01:13]} Qd7 {[%emt 0:00:17]} 41. Qf4 {[%emt 0:09:22]} Qb7 {[%emt 0:05:19]} 42. Rf3 {[%emt 0:02:46]} Qb6 {[%emt 0:02:51]} 43. Nxf7 {[%emt 0:00:00]} (43. Qf6 $142 Qb7 44. Nxe6 (44. Nxf7 Nf5 $18) (44. b5 Qd7 $18) 44... Rh7 45. Ng5 Nc6 46. Nxh7 Qe7 47. Rh3 (47. Qxc6 Kxh7 48. Rh3+ Kg7 49. Qc8 Qf8) (47. Qxe7 Nxe7 48. b5 g5 $18) 47... Qe6 48. Qf4 (48. Qxe6 fxe6 49. Nf6+ Kf8 $18)) 43... Nf5 {[%emt 0:07:16]} 44. gxf5 {[%emt 0:00:00]} Rxf7 {[%emt 0:00:14]} 45. f6 {[%emt 0:00:36] Weighted Error Value: White=0.28 (precise) /Black=0.79.  Loses game:     	---       	Black=1      Mistake:       	White=4     	Black=6      Inaccurate:     	White=2     	Black=4      OK:         	White=9     	Black=9      Best:        	White=1     	Black=1      Strong:       	White=2     	---} 1-0

[Event "Qatar Masters 2024"]
[Site "Doha"]
[Date "2024.12.03"]
[Round "1.31"]
[White "Tissir, Mohamed"]
[Black "Abdisalimov, Abdimalik"]
[Result "1/2-1/2"]
[Annotator "TA"]
[ECO "B86"]
[WhiteElo "2341"]
[BlackElo "2536"]
[PlyCount "130"]
[EventDate "2024.11.24"]
[EventType "swiss"]
[EventCountry "QAT"]
[SourceTitle "playchess.com"]
[Source "ChessBase"]
[SourceQuality "1"]
[TimeControl "40/5400+30:1800+30"]

{[%evp 45,130,0,0,0,58,0,0,0,0,0,0,0,0,0,0,0,0,0,0,0,0,0,0,0,8,0,0,0,0,0,0,0,0,0,0,0,0,0,0,0,0,0,0,0,0,0,0,0,0,0,0,0,0,0,0,0,45,8,8,8,8,8,8,8,8,8,8,8,8,8,8,8,8,0,0,0,0,0,0,0,0,0,0,0,0,0,0]} 1. e4 {[%emt 0:00:04]} c5 {[%emt 0:00:14]} 2. Nf3 {[%emt 0:00:11]} d6 {[%emt 0:00:05]} 3. d4 {[%emt 0:00:12]} cxd4 {[%emt 0:00:03]} 4. Nxd4 {[%emt 0:00:05]} Nf6 {[%emt 0:00:03]} 5. Nc3 {[%emt 0:00:34]} a6 {[%emt 0:00:02]} 6. Bc4 {[%emt 0:00:36]} e6 {[%emt 0:00:04]} 7. a4 {[%emt 0:02:09]} Be7 {[%emt 0:01:58]} 8. O-O {[%emt 0:01:25]} O-O {[%emt 0:00:14]} 9. Kh1 {[%emt 0:04:04] B86: Sicilian Scheveningen/Najdorf: 6 Bc4, without early ...b5.} b6 {[%emt 0:08:13]} 10. Qe2 {[%emt 0:05:05]} Bb7 $146 {[%emt 0:10:14]} ({Predecessor:} 10... Qc7 11. Bd3 Nbd7 12. f4 Bb7 13. Nf3 Nc5 14. Bd2 Nxd3 15. cxd3 Rac8 16. Rac1 Qd7 17. d4 b5 18. axb5 axb5 19. e5 Nd5 20. Ne4 h6 {0-1 Bovtramovics,V (1752)-Nwachukwu,C (1936) Milton Keynes 4NCL Major op 11th 2016 (2.14)}) 11. f4 {[%emt 0:10:02]} d5 {[%emt 0:11:27]} 12. exd5 {[%emt 0:02:00]} exd5 {[%emt 0:00:29]} 13. Ba2 {[%emt 0:14:22]} Re8 {[%emt 0:02:46]} 14. Qd3 {[%emt 0:05:38]} Bc5 {[%emt 0:08:17]} 15. Be3 {[%emt 0:05:32]} Nc6 {[%emt 0:10:50]} 16. Nxc6 {[%emt 0:06:26]} Bxc6 {[%emt 0:01:20]} 17. Bd4 {[%emt 0:00:08]} Ng4 {[%emt 0:01:40]} 18. Bxc5 {[%emt 0:14:42]} bxc5 {[%emt 0:00:39]} 19. Bxd5 {[%emt 0:00:07]} Bxd5 {[%emt 0:20:41]} 20. Nxd5 {[%emt 0:04:53]} Qh4 {[%emt 0:00:22]} 21. Qg3 {[%emt 0:00:22]} Qxg3 {[%emt 0:00:08]} 22. hxg3 {[%emt 0:00:02]} Re2 {[%emt 0:02:00]} 23. Rac1 {[%emt 0:13:49]} Rd2 {[%emt 0:03:29]} 24. Nc3 {[%emt 0:03:35]} Rad8 {[%emt 0:07:22]} (24... f5 $11) 25. Rfe1 {[%emt 0:01:31]} ({White should play} 25. Ne4 $14 R2d4 26. Nxc5) 25... f5 $11 {[%emt 0:03:12]} 26. Kg1 {[%emt 0:01:35]} Kf7 {[%emt 0:00:15]} 27. b3 {[%emt 0:02:27]} R8d6 {[%emt 0:02:50]} 28. a5 {[%emt 0:01:13]} Re6 {[%emt 0:02:13]} 29. Rxe6 {[%emt 0:01:29]} Kxe6 {[%emt 0:00:01]} 30. Re1+ {[%emt 0:00:09]} Kd6 {[%emt 0:02:15]} 31. Re2 {[%emt 0:00:16]} Rxe2 {[%emt 0:00:43]} 32. Nxe2 {[%emt 0:00:01]} Kc6 {[%emt 0:01:22]} 33. c4 $1 {[%emt 0:00:51]} Kd6 {[%emt 0:00:32]} 34. Nc1 {[%emt 0:00:37]} Nf6 {[%emt 0:00:33]} 35. Kf2 {[%emt 0:00:59]} Ne4+ {[%emt 0:00:50]} 36. Kf3 {[%emt 0:00:02]} h5 {[%emt 0:00:27]} 37. Ke3 {[%emt 0:00:20]} Nxg3 {[%emt 0:00:01]} 38. Nd3 {[%emt 0:00:05]} Ne4 {[%emt 0:00:22]} 39. Ne5 {[%emt 0:01:43]} Nc3 {[%emt 0:00:49]} 40. Nd3 {[%emt 0:00:14]} Ne4 {[%emt 0:00:49]} 41. Ne5 {[%emt 0:30:31]} Nf6 {[%emt 0:30:28]} 42. Nd3 {[%emt 0:00:32]} Nd7 {[%emt 0:00:25]} 43. b4 {[%emt 0:00:00]} cxb4 {[%emt 0:00:00]} 44. Kd4 {[%emt 0:00:00]} (44. Nxb4 $5 Nc5 $8 45. Kd2 $11) 44... b3 {[%emt 0:00:00]} 45. Kc3 {[%emt 0:00:00]} Nb8 {[%emt 0:00:00]} 46. Kxb3 {[%emt 0:00:00]} Nc6 {[%emt 0:00:00]} 47. Nb4 {[%emt 0:00:00]} Nd4+ {[%emt 0:00:00]} (47... Nxa5+ 48. Kc3 $17) 48. Ka4 {[%emt 0:00:00]} Kc5 {[%emt 0:00:32]} 49. Nxa6+ {[%emt 0:00:00]} Kxc4 {[%emt 0:00:01]} 50. Nc7 {[%emt 0:00:00]} Nc6 {[%emt 0:03:29]} 51. Ne6 {[%emt 0:00:00]} Nxa5 $1 {[%emt 0:00:14]} 52. Kxa5 {[%emt 0:02:09]} g6 {[%emt 0:00:00]} 53. Nf8 {[%emt 0:02:46]} (53. Kb6 $5 Kd3 $8 54. Nf8 $11) 53... Kd3 {[%emt 0:00:20]} 54. Nxg6 {[%emt 0:00:14]} Ke3 {[%emt 0:00:04]} 55. Kb5 {[%emt 0:00:05]} Kf2 $1 {[%emt 0:00:05]} 56. Kc5 {[%emt 0:00:08]} Kxg2 {[%emt 0:00:06]} 57. Kd5 {[%emt 0:02:12]} Kg3 {[%emt 0:00:15]} 58. Ke5 {[%emt 0:00:38]} (58. Ke6 $5 h4 $8 59. Nxh4 (59. Kxf5 $2 {loses.} h3 $19) 59... Kxf4 60. Ng6+ (60. Nxf5 Kg5 $11) 60... Kf3 61. Ne5+ (61. Kxf5 Kg3 $11) 61... Ke3 62. Ng6 $11) 58... Kg4 {[%emt 0:00:05]} 59. Ne7 {[%emt 0:00:36]} (59. Kf6 $5 h4 $8 60. Nxh4 Kxf4 61. Ng6+ (61. Nxf5 Kg4 $11) 61... Ke3 62. Ke5 $11 (62. Kxf5 Kf3 $11)) 59... h4 {[%emt 0:00:05]} 60. Nxf5 {[%emt 0:00:07]} h3 {[%emt 0:00:03]} 61. Ne3+ $1 {[%emt 0:00:48]} Kf3 {[%emt 0:00:01]} 62. Nf1 {[%emt 0:00:17]} Kg2 {[%emt 0:00:22]} 63. Ne3+ {[%emt 0:00:44]} Kf3 {[%emt 0:00:05]} 64. Nf1 {[%emt 0:00:30]} Kg2 {[%emt 0:00:05]} 65. Ne3+ {[%emt 0:00:31]} Kf3 {[%emt 0:00:05]} 1/2-1/2

[Event "Qatar Masters 2024"]
[Site "Doha"]
[Date "2024.12.03"]
[Round "1.32"]
[White "Adhiban, B.."]
[Black "Nandhidhaa, P V"]
[Result "1-0"]
[Annotator "TA"]
[ECO "C11"]
[WhiteElo "2535"]
[BlackElo "2339"]
[PlyCount "57"]
[EventDate "2024.11.24"]
[EventType "swiss"]
[EventCountry "QAT"]
[SourceTitle "playchess.com"]
[Source "ChessBase"]
[SourceQuality "1"]
[TimeControl "40/5400+30:1800+30"]

{[%evp 16,57,10,0,1,0,0,0,0,-4,-12,0,10,0,0,14,16,18,26,10,102,85,138,152,127,117,117,113,125,116,101,29,74,88,69,57,152,149,183,172,29995,29996,29996,29997]} 1. e4 {[%emt 0:00:04][%cal Be2e4,Be4e5][%mdl 32]} e6 {[%emt 0:00:11]} 2. d4 {[%emt 0:00:04]} d5 {[%emt 0:00:04]} 3. Nc3 {[%emt 0:00:03]} Nf6 {[%emt 0:00:18]} 4. e5 {[%emt 0:00:21]} Nfd7 {[%emt 0:00:07]} 5. f4 {[%emt 0:00:03]} c5 {[%emt 0:00:04]} 6. Nf3 {[%emt 0:00:03]} Nc6 {[%emt 0:00:13]} 7. Be3 {[%emt 0:00:06]} a6 {[%emt 0:05:31]} 8. Qd2 {[%emt 0:01:10]} Be7 {[%emt 0:01:44]} 9. Be2 {[%emt 0:00:43]} O-O {[%emt 0:07:58]} 10. O-O {[%emt 0:00:09]} b5 {[%emt 0:02:27]} 11. Nd1 {[%emt 0:00:15]} b4 {[%emt 0:12:38] The position is equal.} 12. Nf2 {[%emt 0:04:03]} a5 {[%emt 0:07:37]} 13. dxc5 {[%emt 0:12:32]} Nxc5 {[%emt 0:02:37]} 14. c4 {[%emt 0:02:08]} dxc4 {[%emt 0:15:07]} 15. Bxc4 {[%emt 0:06:57]} Bb7 {[%emt 0:05:29]} 16. Qe2 {[%emt 0:02:41]} Rc8 {[%emt 0:03:43]} 17. Rac1 {[%emt 0:02:00]} Nb8 {[%emt 0:04:52]} (17... a4 $11) 18. Rfd1 {[%emt 0:11:23]} Qb6 {[%emt 0:02:57]} (18... Qc7 $142) 19. Nd4 $1 $16 {[%emt 0:00:06] Black must now prevent f5.} Nbd7 {[%emt 0:06:57]} 20. Ng4 {[%emt 0:09:36] Threatens to win with f5.} Qc7 {[%emt 0:11:19]} 21. Nb5 {[%emt 0:09:50]} Qb8 {[%emt 0:00:59]} 22. Nd6 $36 {[%emt 0:00:56][%mdl 2048] Black is under strong pressure.} Bxd6 {[%emt 0:03:17]} 23. Rxd6 {[%emt 0:00:08]} (23. exd6 $16 Rc6 24. Bb5 Rxd6 25. Bxc5 (25. Rxc5 Nxc5 26. Bxc5 Rxd1+ 27. Qxd1 Rd8 $11) 25... Rxd1+ 26. Qxd1 Nxc5 27. Rxc5) 23... Bc6 {[%emt 0:04:42]} 24. Rcd1 {[%emt 0:08:49]} Qb7 {[%emt 0:00:29]} 25. h3 {[%emt 0:07:34] White has more active pieces.} Rc7 {[%emt 0:00:10] [#]} ({Black should try} 25... Be4 $14) 26. Nf6+ $1 {[%emt 0:05:30][%mdl 512]} gxf6 {[%emt 0:01:01] [#]} (26... Nxf6 27. exf6) 27. Bxc5 $1 {[%emt 0:00:34]} Nxc5 $2 {[%emt 0:00:49]} (27... f5 $18) 28. Qg4+ {[%emt 0:00:16]} Kh8 {[%emt 0:00:18]} 29. exf6 {[%emt 0:00:04] Weighted Error Value: White=0.07 (flawless) /Black=0.40.  Mistake:       	White=1     	Black=4      Inaccurate:     	---       	Black=1      OK:         	White=6     	Black=7      Best:        	White=1     	Black=2      Strong:       	White=2     	---        Brilliant:      	White=1     	---} 1-0

[Event "Qatar Masters 2024"]
[Site "Doha"]
[Date "2024.12.03"]
[Round "1.33"]
[White "Adireddy Arjun"]
[Black "Harutyunyan, Tigran K."]
[Result "0-1"]
[Annotator "TA"]
[ECO "C88"]
[WhiteElo "2335"]
[BlackElo "2524"]
[PlyCount "68"]
[EventDate "2024.11.24"]
[EventType "swiss"]
[EventCountry "QAT"]
[SourceTitle "playchess.com"]
[Source "ChessBase"]
[SourceQuality "1"]
[TimeControl "40/5400+30:1800+30"]

{[%evp 22,68,8,0,37,28,41,34,27,0,0,0,0,0,14,9,27,0,0,0,41,-132,-60,-66,-63,-70,-65,-60,-60,-152,-145,-208,-211,-271,-272,-501,-491,-618,-583,-672,-669,-865,-865,-871,-857,-758,-723,-2066,-1910]} 1. e4 {[%emt 0:00:16]} e5 {[%emt 0:00:23]} 2. Nf3 {[%emt 0:00:07]} Nc6 {[%emt 0:00:09]} 3. Bb5 {[%emt 0:00:07]} a6 {[%emt 0:00:35]} 4. Ba4 {[%emt 0:00:07]} Nf6 {[%emt 0:00:15]} 5. O-O {[%emt 0:00:12]} Be7 {[%emt 0:00:10]} 6. Re1 {[%emt 0:00:18]} b5 {[%emt 0:00:48]} 7. Bb3 {[%emt 0:00:07]} O-O {[%emt 0:00:58]} 8. a4 {[%emt 0:00:06]} Bb7 {[%emt 0:01:17]} 9. d3 {[%emt 0:00:16]} d6 {[%emt 0:00:20]} 10. c3 {[%emt 0:04:54]} Na5 {[%emt 0:04:01]} 11. Ba2 {[%emt 0:00:56]} c5 {[%emt 0:00:48][%cal Bc7c5,Bc5b4,Bb4b3][%mdl 32]} 12. Nbd2 {[%emt 0:00:48][%cal Bb1d2,Bd2f1,Bf1e3][%mdl 32]} Rb8 {[%emt 0:24:35]} 13. Nf1 {[%emt 0:10:22]} b4 {[%emt 0:01:05]} 14. cxb4 {[%emt 0:04:00]} cxb4 {[%emt 0:00:16] White is slightly better.} 15. Ne3 {[%emt 0:00:33]} b3 {[%emt 0:18:15]} 16. Bb1 {[%emt 0:01:19]} Re8 {[%emt 0:06:00]} 17. Bd2 {[%emt 0:19:04]} d5 {[%emt 0:02:46]} 18. exd5 {[%emt 0:01:01]} Nxd5 {[%emt 0:05:45]} (18... Bc5 {seems wilder.} 19. Nc4 e4 20. Bxa5 Qxd5 21. dxe4 Qxc4 22. Qd2 Nxe4 23. Bxe4 Bxe4 24. Rac1 Bc2) 19. Nxd5 {[%emt 0:02:38]} Bxd5 {[%emt 0:00:23]} 20. Nxe5 {[%emt 0:05:43]} Nc6 {[%emt 0:05:38] [#] Repels d4. Hoping for ...Bc5.} 21. Bc3 $2 {[%emt 0:03:02]} (21. d4 $1 $14 {keeps the upper hand.}) 21... Nxe5 {[%emt 0:05:20]} (21... Bb4 $17 22. Bxb4 Rxb4 (22... Nxe5 23. d4 $15) 23. Nxc6 Bxc6 24. Rxe8+ Bxe8) 22. Rxe5 $15 {[%emt 0:01:58]} Bb4 {[%emt 0:00:27] Threatens to win with ...Bxc3.} 23. Rxe8+ {[%emt 0:04:02]} Qxe8 {[%emt 0:00:23]} 24. Bxb4 {[%emt 0:00:19]} Rxb4 {[%emt 0:00:03]} 25. d4 {[%emt 0:01:17] [#]} (25. Qd2 $1 $15 a5 (25... Rxa4 $2 26. Rxa4 Qxa4 27. Qg5 $19) 26. d4) 25... g6 $1 $17 {[%emt 0:01:49][%cal Ob4d4] Black is much more active.} ({Don't do} 25... Rxa4 26. Rxa4 (26. Bxh7+ $2 Kxh7 27. Rxa4 Qxa4 $19) 26... Qxa4 27. Bd3 $15) 26. Bd3 {[%emt 0:06:01]} (26. h3 $17) 26... Rxd4 $19 {[%emt 0:00:30] Strongly threatening ...Bc4.} 27. Qf1 {[%emt 0:00:52]} a5 {[%emt 0:09:34]} ({But not} 27... Rxa4 28. Rxa4 Qxa4 29. Qc1 $19) 28. Bb5 $2 {[%emt 0:03:22]} (28. g3 {keeps fighting.}) 28... Qe4 {[%emt 0:00:32] Black is clearly winning.} 29. Be2 {[%emt 0:14:33]} Qc2 {[%emt 0:01:22]} 30. Rb1 {[%emt 0:03:18]} Be4 {[%emt 0:01:00]} 31. Rc1 {[%emt 0:01:08]} Qxb2 {[%emt 0:00:07]} 32. Bc4 {[%emt 0:00:21]} Bc2 {[%emt 0:01:17][%cal Od4c4] White must now prevent ...Rxc4!} 33. Re1 {[%emt 0:00:13]} Qc3 {[%emt 0:00:24]} 34. Bb5 {[%emt 0:00:27]} b2 {[%emt 0:00:32] Weighted Error Value: White=0.71/Black=0.09 (flawless) .  Mistake:       	White=4     	Black=1      Inaccurate:     	White=2     	Black=1      OK:         	White=4     	Black=5      Best:        	White=2     	Black=3      Strong:       	---       	Black=1} 0-1

[Event "Qatar Masters 2024"]
[Site "Doha"]
[Date "2024.12.03"]
[Round "1.34"]
[White "Raja Rithvik R"]
[Black "Baradaran Tamadon, Arian"]
[Result "1-0"]
[Annotator "TA"]
[ECO "D35"]
[WhiteElo "2528"]
[BlackElo "2323"]
[PlyCount "77"]
[EventDate "2024.11.24"]
[EventType "swiss"]
[EventCountry "QAT"]
[SourceTitle "playchess.com"]
[Source "ChessBase"]
[SourceQuality "1"]
[TimeControl "40/5400+30:1800+30"]

{[%evp 10,77,17,11,27,30,31,20,40,32,42,31,25,29,25,25,38,41,76,50,110,12,112,120,124,37,34,56,35,20,174,152,293,297,425,452,430,212,516,492,525,533,511,547,533,476,527,533,549,545,950,775,1570,1153,1113,1105,1702,1747,3736,3394,6307,5293,6816,6708,29989,29988,29988,29989,29995,29996]} 1. d4 {[%emt 0:00:08]} Nf6 {[%emt 0:00:31]} 2. c4 {[%emt 0:00:08]} e6 {[%emt 0:00:05]} 3. Nc3 {[%emt 0:00:07]} d5 {[%emt 0:00:30]} 4. cxd5 {[%emt 0:01:08]} exd5 {[%emt 0:00:07]} 5. Bg5 {[%emt 0:00:06]} c6 {[%emt 0:00:04]} 6. e3 {[%emt 0:00:13]} Be6 {[%emt 0:00:07]} 7. Bd3 {[%emt 0:04:52]} Nbd7 {[%emt 0:00:08]} 8. Bf4 {[%emt 0:10:02]} h6 {[%emt 0:00:44] The position is equal.} 9. h3 {[%emt 0:01:10]} Nb6 {[%emt 0:04:20]} 10. Nge2 {[%emt 0:11:04][%cal Bg1e2,Be2f4,Bf4h5,Bh5f6][%mdl 32]} Bd6 {[%emt 0:03:17]} 11. Qc2 {[%emt 0:01:05]} O-O {[%emt 0:02:58]} 12. g4 {[%emt 0:06:52][%cal Bg2g4,Bg4g5][%mdl 32]} Bxf4 {[%emt 0:15:15]} 13. Nxf4 {[%emt 0:03:34]} Qe7 {[%emt 0:04:06]} 14. Rg1 {[%emt 0:06:50]} Nfd7 {[%emt 0:04:05] [#]} ({Black should play} 14... Rac8 $14) 15. h4 {[%emt 0:07:01]} c5 {[%emt 0:33:03]} (15... Qxh4 $11 16. O-O-O Bxg4) 16. g5 $16 {[%emt 0:00:40]} h5 {[%emt 0:08:16]} 17. dxc5 {[%emt 0:22:12] White is much more active.} (17. Nxh5 cxd4 18. Rg3 Rac8 (18... dxc3 19. Qxc3 f5 20. gxf6 $16) 19. exd4 Bg4+ 20. Re3 Qb4 $17) (17. Nxe6 $16 Qxe6 18. Bh7+ Kh8 19. Bf5) 17... Nxc5 $14 {[%emt 0:01:16]} 18. Nxh5 {[%emt 0:01:49]} (18. Rd1 {simplifies} Nxd3+ 19. Qxd3 Rfd8 20. Qe2) 18... d4 $1 {[%emt 0:04:14]} 19. Be2 $36 {[%emt 0:07:29][%cal Oh5f6][%mdl 2048] aiming for Nf6+! White has the initiative.} g6 $2 {[%emt 0:03:21] A mistake that costs the game.} (19... dxc3 $2 20. Nf6+ $18) (19... Rfd8 $1 $11 {and Black is okay.} 20. Nf6+ Kf8) 20. Nf6+ $18 {[%emt 0:02:23]} (20. exd4 Bf5 21. Nf6+ Kg7 $16) 20... Kh8 {[%emt 0:00:01]} (20... Kg7 $16 {was worth a try.}) 21. h5 {[%emt 0:02:54][%cal Bh4h5,Bh5g6][%mdl 32] Strongly threatening hxg6!} (21. exd4 $6 Bf5 22. Ncd5 Nxd5 23. Nxd5 (23. Qxc5 Qxc5 24. dxc5 Nxf6 $16) 23... Bxc2 $18) 21... Bf5 {[%emt 0:09:52]} (21... dxc3 $2 22. Rh1 $18) (21... Kg7 {is a better defense.} 22. Nb5 (22. exd4 Bf5 $18) 22... Bf5) 22. e4 $1 {[%emt 0:00:13]} Qe5 {[%emt 0:04:06]} 23. exf5 {[%emt 0:03:17]} (23. hxg6 $142 Bxg6 24. f4 Qxf4 25. Rh1+ Kg7 26. Rh7+ Bxh7 27. Nh5+ Kg8 28. Nxf4 dxc3 29. Qxc3 Nxe4 30. Qh3) 23... d3 $2 {[%emt 0:00:14] [#]} (23... gxf5 {is more resistant.} 24. Rd1 dxc3 25. Qxc3 Qxc3+ 26. bxc3 Rac8) 24. hxg6 $1 {[%emt 0:00:17]} Qh2 {[%emt 0:00:09] [#] Dodges Rh1} (24... dxc2 25. Rh1+) 25. O-O-O $1 {[%emt 0:02:10][%cal Og1h1] Hoping for Rh1!} dxc2 26. Kxc2 {[%emt 0:00:02]} Kg7 {[%emt 0:02:00] ...Rh8 is the strong threat.} 27. Rh1 {[%emt 0:00:31]} Rh8 {[%emt 0:00:31][%cal Bf8h8,Bh8h2,Bh2f2,Bf2f5,Bf5e5,Be5e4][%mdl 32]} 28. Rxh2 {[%emt 0:00:11]} Rxh2 {[%emt 0:00:02]} 29. b4 {[%emt 0:04:03][%cal Bb2b4,Bb4c5][%mdl 32]} Rxf2 {[%emt 0:01:06]} 30. bxc5 {[%emt 0:00:40] Threatens to win with Nh5+.} Rc8 {[%emt 0:00:30]} 31. Nfe4 {[%emt 0:01:33]} Rxf5 {[%emt 0:00:07]} 32. cxb6 {[%emt 0:00:31] Bg4 would now be deadly.} Re5 {[%emt 0:00:24]} 33. Bg4 {[%emt 0:00:54]} Ra8 {[%emt 0:01:00]} 34. gxf7 {[%emt 0:00:18]} axb6 {[%emt 0:00:07][%cal Ba7b6,Bb6b5][%mdl 32]} 35. Rd7 {[%emt 0:00:18]} b5 {[%emt 0:00:18]} 36. Rxb7 {[%emt 0:00:26]} Rxa2+ {[%emt 0:01:03]} 37. Nxa2 {[%emt 0:00:24] White mates.} Rxe4 {[%emt 0:00:03]} 38. Bh5 {[%emt 0:00:41]} Re5 {[%emt 0:00:09]} 39. Rb8 {[%emt 0:00:12] Weighted Error Value: White=0.25 (precise) /Black=0.75.  Mistake:       	White=3     	Black=6      Inaccurate:     	White=1     	Black=3      OK:         	White=9     	Black=7      Best:        	White=2     	Black=2      Strong:       	White=1     	Black=1} 1-0